{"text_format":"1","workbook":"xlsx","n_sheets":1,"sheets":["TDSheet"],"not_rendered":{"charts":0,"images":0,"macros":0,"external_links":0,"defined_names":1,"comments":0,"pivot_tables":0},"unopened":[],"bounds":{"document_bytes":16777216,"sheet_cells":100000,"rows_first":2000,"rows_last":500,"rows_between":2000,"halvings":0,"cell_chars":16384,"cell_head_chars":4096},"cells_cut":0,"cells_raw":0,"read":"whole","date_system":"1900"}

{"sheet":"TDSheet","index":0,"n_rows":76,"n_cols":17,"rows_kept":76,"cut":false,"hidden":false,"merged":[[70,1,70,4],[71,6,71,8],[74,1,74,4],[75,6,75,8],[28,0,28,9],[29,0,29,9],[30,0,30,9],[58,0,58,16],[61,15,62,16],[63,0,63,1],[28,15,28,16],[29,11,29,12],[29,13,29,14],[29,15,29,16],[30,11,30,12],[30,13,30,14],[30,15,30,16],[57,0,57,1],[57,3,57,5],[57,7,57,9],[57,10,57,11],[57,12,57,14],[57,15,57,16],[63,2,63,4],[63,15,63,16],[64,0,64,4],[64,15,64,16],[61,0,62,1],[61,2,62,4],[61,5,62,5],[61,6,61,8],[61,9,61,11],[61,12,61,14],[53,3,53,5],[53,7,53,9],[53,10,53,11],[53,12,53,14],[53,15,53,16],[54,0,54,16],[55,0,55,16],[56,0,56,1],[56,3,56,5],[56,7,56,9],[56,10,56,11],[56,12,56,14],[56,15,56,16],[49,0,49,16],[50,0,50,16],[51,3,51,5],[51,7,51,9],[51,10,51,11],[51,12,51,14],[51,15,51,16],[52,3,52,5],[52,7,52,9],[52,10,52,11],[52,12,52,14],[52,15,52,16],[47,3,47,5],[47,7,47,9],[47,10,47,11],[47,12,47,14],[47,15,47,16],[48,3,48,5],[48,7,48,9],[48,10,48,11],[48,12,48,14],[48,15,48,16],[45,3,45,5],[45,7,45,9],[45,10,45,11],[45,12,45,14],[45,15,45,16],[46,3,46,5],[46,7,46,9],[46,10,46,11],[46,12,46,14],[46,15,46,16],[41,0,41,16],[42,0,42,16],[43,3,43,5],[43,7,43,9],[43,10,43,11],[43,12,43,14],[43,15,43,16],[44,3,44,5],[44,7,44,9],[44,10,44,11],[44,12,44,14],[44,15,44,16],[37,0,37,1],[37,3,37,16],[38,0,38,16],[39,3,39,5],[39,7,39,9],[39,10,39,11],[39,12,39,14],[39,15,39,16],[40,3,40,5],[40,7,40,9],[40,10,40,11],[40,12,40,14],[40,15,40,16],[34,3,35,5],[34,6,35,6],[34,7,35,9],[34,10,35,11],[27,0,27,9],[27,11,27,12],[34,12,35,14],[34,15,35,16],[36,0,36,1],[36,3,36,5],[36,7,36,9],[36,10,36,11],[36,12,36,14],[36,15,36,16],[34,0,35,1],[34,2,35,2],[26,0,26,9],[26,11,26,12],[26,13,26,14],[26,15,26,16],[27,13,27,14],[27,15,27,16],[31,0,31,10],[31,11,31,12],[31,13,31,14],[31,15,31,16],[28,11,28,12],[28,13,28,14],[21,0,21,1],[21,4,21,10],[21,11,21,12],[21,13,21,14],[22,0,22,1],[22,4,22,10],[22,13,22,14],[22,15,22,16],[23,0,23,10],[23,11,23,12],[23,13,23,14],[18,15,19,15],[18,16,19,16],[20,0,20,1],[20,4,20,10],[20,11,20,12],[20,13,20,14],[18,0,19,1],[18,2,19,2],[18,3,19,3],[18,4,19,10],[18,11,19,12],[18,13,19,14],[14,11,14,12],[14,13,14,14],[15,0,15,2],[15,3,15,4],[15,5,15,6],[15,7,15,8],[15,9,15,10],[15,11,15,12],[15,13,15,14],[10,1,10,2],[10,7,10,16],[13,0,13,6],[13,7,13,12],[13,13,13,16],[14,0,14,2],[14,3,14,4],[14,5,14,6],[14,7,14,8],[2,0,2,16],[3,0,3,16],[5,1,5,2],[5,4,5,16],[6,1,6,2],[6,4,6,16],[14,9,14,10],[7,1,7,2],[7,4,7,16],[8,1,8,2],[8,4,8,16],[9,1,9,2],[9,4,9,5],[9,7,9,16]]}
[]
[]
["Звіт"]
["про виконання паспорта бюджетної програми місцевого бюджету станом на 01.01.2019"]
[]
["1.",913123,null,null,"Управління соціальних служб для сім’ї, дітей та молоді Луцької міської ради"]
[null,"(КПКВК МБ)",null,null,"(найменування головного розпорядника)"]
["2.",{"$f":"B6","v":913123},null,null,"Управління соціальних служб для сім’ї, дітей та молоді Луцької міської ради"]
[null,"(КПКВК МБ)",null,null,"(найменування відповідального виконавця)"]
["3.",{"$f":"B6","v":913123},null,null,"1040",null,null,"Заходи державної політики з питань сім'ї"]
[null,"(КПКВК МБ)",null,null,"(КФКВК)",1,null,"(найменування бюджетної програми)"]
[]
["4.","Видатки та надання кредитів за бюдженою програмою за звітний період"]
["Затверджено паспортом бюджетної програми",null,null,null,null,null,null,"Касові видатки (надані кредити)",null,null,null,null,null,"Відхилення"]
["Загальний фонд",null,null,"Спеціальний фонд",null,"Разом",null,"Загальний фонд",null,"Спеціальний фонд",null,"Разом",null,"Загальний фонд",null,"Спеціальний фонд","разом"]
[1015000,null,null,0,null,{"$f":"A16-D16","v":1015000},null,1014996.51,null,0,null,{"$f":"H16-J16","v":1014996.51},null,{"$f":"A16-H16","v":3.4899999999906868},null,{"$f":"D16-J16","v":0},{"$f":"F16-L16","v":3.4899999999906868}]
[]
["5. Обсяги фінансування бюджетної програми за звітний період у розрізі підпрограм та завдань",null,null,null,null,null,null,null,null,null,null,null,null,null,null,null,"(грн) "]
["№ з/п",null,"КПКВК","КФКВК","Підпрограма/завдання бюджетної програми",null,null,null,null,null,null,"Затверджені паспортом загальний фонд",null,"Касові видатки загальний фонд",null,"Відхилення","Пояснення щодо причин відхилення"]
[]
[1,null,2,3,4,null,null,null,null,null,null,5,null,6,null,7]
[1,null,913123,1040,"Здійснення заходів із забезпечення соціальної підтримки та надання соціальних послуг дітям, молоді та сім'ям, які опинились у складних життєвих обставинах",null,null,null,null,null,null,{"$f":"A16","v":1015000},null,{"$f":"L16","v":1014996.51},null,{"$f":"L22-N22","v":3.4899999999906868}]
[null,null,null,null,null,null,null,null,null,null,null,191]
["Усього",null,null,null,null,null,null,null,null,null,null,{"$f":"L22","v":1015000},null,0,null,{"$f":"P22","v":3.4899999999906868}]
[]
["6. Видатки на реалізацію регіональних цільових програм, які виконуються у межах бюджетної програми, за звітний період:",null,null,null,null,null,null,null,null,null,null,null,null,null,null,null,"(грн) "]
["Назва\nрегіональної цільової програми та підпрограми",null,null,null,null,null,null,null,null,null,"КПКВК","загальний фонд",null,"спеціальний фонд",null,"Разом"]
[1,null,null,null,null,null,null,null,null,null,2,3,null,4,null,5]
["Програма надання інтегрованих соціальних послуг з питань сім’ї, дітей та молоді, попередження насильства в сім’ї та протидії торгівлі людьми на 2018 – 2020 роки, затвердженої рішенням міської ради від 29.11.2017 №34/12",null,null,null,null,null,null,null,null,null,2282,757999.58,null,0,null,{"$f":"L29+N29","v":757999.58}]
["Програма соціально-правового захисту дітей на 2017-2021 роки, затвердженої рішенням міської ради від 01.12.2016 №15/31",null,null,null,null,null,null,null,null,null,2282,173000,null,0,null,{"$f":"L30+N30","v":173000}]
["Програма підтримки учасників бойових дій, бійців-добровольців, членів їх сімей, а також сімей загиблих (померлих) військовослужбовців, які зареєстровані в м.Луцьку, на 2018-2020 роки у новій редакції, яка затверджена рішенням міської ради від 26.09.2018 № 47/57",null,null,null,null,null,null,null,null,null,2282,83996.93,null,0,null,{"$f":"L31+N31","v":83996.93}]
["Усього",null,null,null,null,null,null,null,null,null,null,{"$f":"SUM(L29:M31)","v":1014996.51},null,{"$f":"SUM(N29:O31)","v":0},null,{"$f":"SUM(P29:Q31)","v":1014996.51}]
[]
["7. Результативні показники бюджетної програми у розрізі підпрограм і завдань:"]
["№ з/п",null,"КПКВК","Показники",null,null,"Одиниця виміру","Джерело інформації",null,null,"Затверджені паспортом бюджетної програми за звітний період",null,"Виконано за звітний період (касові видатки/надані кредити)",null,null,"Відхилення"]
[]
[1,null,2,3,null,null,4,5,null,null,6,null,7,null,null,8]
[1,null,913123,"Здійснення заходів із забезпечення соціальної підтримки та надання соціальних послуг дітям, молоді та сім'ям, які опинились у складних життєвих обставинах"]
["затрат"]
[1,null,{"$f":"C38","v":913123},"Кількість заходів управління СССДМ",null,null,"одиниць","звітність установ",null,null,235,null,256,null,null,{"$f":"M40-K40","v":21}]
[2,null,913123,"Кількість спеціалістів,залучених до заходів ",null,null,"осіб","Штатний розпис",null,null,13,null,14,null,null,{"$f":"M41-K41","v":1}]
["Пояснення — Значне збільшення кількості і маштабності заходів"]
["продукту"]
[1,null,913123,"кількість заходів управління",null,null,"од.","звіт",null,null,{"$f":"K40","v":235},null,{"$f":"M40","v":256},null,null,{"$f":"M44-K44","v":21}]
[2,null,913123,"Кількість прийомних сімей,дитячих будинків сімейного типу",null,null,"одиниць","звіт про проведення заходів",null,null,5,null,5,null,null,0]
[3,null,913123,"Кількість сімей,в яких виховуються діти сироти та діти позбавлені батьківского піклування",null,null,"одиниць","звіт про проведення заходів",null,null,145,null,137,null,null,-8]
[4,null,913123,"Кількість сімей,які опинились в складних життевих обставинах,які перебувають на обліку в УСССДМ",null,null,"одиниць","звіт про проведення заходів",null,null,281,null,289,null,null,8]
[5,null,913123,"Кількість учасників заходів проведених УСССДМ",null,null,"осіб","звіт про проведення заходів",null,null,15262,null,14897,null,null,-365]
[6,null,913123,"КІлькість дітей,молоді та сімей яким надані індівидуальні соціальні послуги",null,null,"осіб","звіт про проведення заходів",null,null,10097,null,13638,null,null,3541]
["Пояснення — Значне збільшення кількості і маштабності заходів"]
["ефективності"]
[1,null,913123,"Середні витрати на 1 захід з проведених УСССДМ",null,null,"грн.","кошторис ",null,null,{"$f":"L16/K40","v":4319.1340851063833},null,{"$f":"L32/M40","v":3964.8301171875},null,null,{"$f":"M52-K52","v":-354.30396791888325}]
[2,null,913123,"Середні витрати на 1 учасника заходів проведених УСССДМ",null,null,"грн.","кошторис ",null,null,{"$f":"K52/K48","v":0.28299921930981414},{"$f":"L52/L48","v":{"$error":"#DIV/0!"}},{"$f":"M52/M48","v":0.26614956818067398},null,null,{"$f":"M53-K53","v":-1.6849651129140164E-2}]
[3,null,913123,"Середні витрати на надання одної соц.послуги",null,null,"грн.","кошторис ",null,null,{"$f":"L16/(K45+K48+K46+K47+K49+K49)","v":28.283125087078886},{"$f":"271164/(L45+L46+L47+L49+L49)","v":{"$error":"#DIV/0!"}},{"$f":"L16/(M45+M48+M46+M47+M49+M49)","v":23.823972162238288},null,null,{"$f":"M54-K54","v":-4.4591529248405983}]
["Пояснення — Економія на маштабності заходів"]
["якості"]
[1,null,913123,"динаміка  кількості осіб регіону, які перебувають у складних життєвих обставинах, внаслідок проведених заходів та наданих управлінням соціальних служб для сім'ї, дітей та молоді послуг порівняно з минулим роком",null,null,"%","звіт",null,null,100,null,137.05000000000001,null,null,{"$f":"M57-K57","v":37.050000000000011}]
[2,null,913123,"динаміка  кількості учасників, охоплених заходами управління соціальних служб для сім’ї, дітей та молоді, порівняно з минулим роком",null,null,"%","звіт",null,null,100,null,100,null,null,{"$f":"M58-K58","v":0}]
["Збільшення динаміки осіб яким надано соціальні послуги зумовило збільшення штатних одиниць управління, що дозволяє швидше та якісніше виконувати поставлені завдання. Скрутне економічне становище в державі нажаль призводить до збільшенням кількості сімей, які опиняються в складних життєвих обставинах. Працівниками управління всебічно проводяться заходи по контролю виконання батьківських обов'язків у таких сім'ях. А також щорічно до великих свят і перед навчальним роком даним сім'ям надається допомога. Також проводиться щоденна робота з громадськими організаціями де виховуються особливі діти, що дає змогу як найкраще соціалізувати дану категорію дітей у громаді."]
[]
["8. Джерела фінансування інвестиційних проектів у розрізі підпрограм (2)",null,null,null,null,null,null,null,null,null,null,null,null,null,null,null,"(тис.грн) "]
["Код",null,"Найменування джерел надходжень",null,null,"КПКВК","Касові видатки станом на \n1 січня звітного періоду",null,null,"План видатків звітного періоду",null,null,"Прогноз видатків до кінця реалізації інвестиційного проекту (3)",null,null,"Пояснення, що характеризують джерела фінансування"]
[null,null,null,null,null,null,"загальний фонд","спеціальний фонд","Разом","загальний фонд","спеціальний фонд","Разом","загальний фонд","спеціальний фонд","Разом"]
[1,null,2,null,null,3,4,5,6,7,8,9,10,11,12,13]
["УСЬОГО:"]
[]
[]
[]
[]
[]
[null,"Начальник управління соціальних служб для сім’ї, дітей та молоді Луцької міської ради",null,null,null,null,null,null,null,null,null,null,null,"Л.В. Галан"]
[null,null,null,null,null,null,"(підпис)",null,null,null,null,null,null,"(ініціали та прізвище)"]
[]
[null," ПОГОДЖЕНО: "]
[null,"Головний спеціаліст, бухгалтер управління соціальних служб для сім’ї, дітей та молоді Луцької міської ради",null,null,null,null,null,null,null,null,null,null,null,"К.В. Глинюк"]
[null,null,null,null,null,null,"(підпис)",null,null,null,null,null,null,"(ініціали та прізвище)"]